[Event "***Titled Tuesday 3|2 Blitz"]
[Site "Chess.com"]
[Date "2017.02.07"]
[Round "4"]
[White "PaulfromSPb"]
[Black "Vegan4future"]
[Result "1-0"]
[WhiteElo "2473"]
[BlackElo "2426"]
[TimeControl "180+2"]
[EndTime "14:01:17 PST"]
[Termination "PaulfromSPb won by resignation"]

1. e4 {[%clk 0:03:02]} 1... Nc6 {[%clk 0:02:56.6]} 2. Nf3 {[%clk 0:03:01.8]}
2... f5 {[%clk 0:02:57.1]} 3. e5 {[%clk 0:02:56.2]} 3... d6 {[%clk 0:02:58.3]}
4. exd6 {[%clk 0:02:56.3]} 4... e5 {[%clk 0:03:00.2]} 5. dxc7 {[%clk 0:02:53.1]}
5... Qxc7 {[%clk 0:03:02.1]} 6. d3 {[%clk 0:02:54]} 6... Nf6 {[%clk 0:03:02]} 7.
Nc3 {[%clk 0:02:54.5]} 7... a6 {[%clk 0:02:59.6]} 8. Bg5 {[%clk 0:02:54.3]} 8...
Be7 {[%clk 0:02:53.8]} 9. Qd2 {[%clk 0:02:51.3]} 9... Be6 {[%clk 0:02:52.5]} 10.
Be2 {[%clk 0:02:49]} 10... O-O {[%clk 0:02:52]} 11. O-O {[%clk 0:02:48.6]} 11...
Rad8 {[%clk 0:02:52.5]} 12. Bxf6 {[%clk 0:02:40]} 12... Bxf6 {[%clk 0:02:51]}
13. Ng5 {[%clk 0:02:41.2]} 13... Bc8 {[%clk 0:02:45.3]} 14. Rfe1 {[%clk
0:02:26.7]} 14... h6 {[%clk 0:02:37.9]} 15. Nh3 {[%clk 0:02:22]} 15... b5 {[%clk
0:02:22.5]} 16. f4 {[%clk 0:02:13.7]} 16... b4 {[%clk 0:02:05.7]} 17. Na4 {[%clk
0:02:08.2]} 17... Bb7 {[%clk 0:01:20.2]} 18. Bf1 {[%clk 0:02:00.8]} 18... exf4
{[%clk 0:01:05.6]} 19. Nxf4 {[%clk 0:02:00.2]} 19... Bg5 {[%clk 0:01:06.7]} 20.
Ne6 {[%clk 0:01:44.4]} 20... Bxd2 {[%clk 0:00:59.8]} 21. Nxc7 {[%clk 0:01:45.1]}
21... Bxe1 {[%clk 0:00:50.7]} 22. Rxe1 {[%clk 0:01:46]} 22... Rc8 {[%clk
0:00:49.3]} 23. Nd5 {[%clk 0:01:37.4]} 23... Kh8 {[%clk 0:00:41.4]} 24. Nc5
{[%clk 0:01:29.5]} 24... Ba8 {[%clk 0:00:36.7]} 25. Nxa6 {[%clk 0:01:25.5]}
25... Nd4 {[%clk 0:00:34]} 26. Ne7 {[%clk 0:01:20.8]} 26... Rxc2 {[%clk
0:00:27.8]} 27. Ng6+ {[%clk 0:01:20.5]} 27... Kg8 {[%clk 0:00:29.4]} 28. Nxf8
{[%clk 0:01:20.1]} 28... Kxf8 {[%clk 0:00:31.3]} 29. Nxb4 {[%clk 0:01:16.9]}
29... Rxb2 {[%clk 0:00:32.4]} 30. a3 {[%clk 0:01:15.5]} 30... Rb3 {[%clk
0:00:30.7]} 31. Ra1 {[%clk 0:01:15.5]} 31... g5 {[%clk 0:00:26.2]} 32. Kf2
{[%clk 0:01:04.8]} 32... f4 {[%clk 0:00:23.4]} 33. Ra2 {[%clk 0:01:06]} 33... g4
{[%clk 0:00:24.1]} 34. Nc2 {[%clk 0:01:01.3]} 34... Nf5 {[%clk 0:00:22.7]} 35.
a4 {[%clk 0:01:00.2]} 35... h5 {[%clk 0:00:23.2]} 36. g3 {[%clk 0:00:56.9]}
36... fxg3+ {[%clk 0:00:19.5]} 37. hxg3 {[%clk 0:00:57.9]} 37... h4 {[%clk
0:00:21.4]} 38. gxh4 {[%clk 0:00:59]} 38... g3+ {[%clk 0:00:23.3]} 39. Ke2
{[%clk 0:00:41]} 39... g2 {[%clk 0:00:24.4]} 40. Bxg2 {[%clk 0:00:42.1]} 40...
Bxg2 {[%clk 0:00:26.3]} 41. h5 {[%clk 0:00:43.1]} 41... Ba8 {[%clk 0:00:26.4]}
42. Kd2 {[%clk 0:00:42.2]} 42... Kg7 {[%clk 0:00:26.4]} 43. a5 {[%clk
0:00:41.1]} 43... Kh6 {[%clk 0:00:26.3]} 44. a6 {[%clk 0:00:42.2]} 44... Rb8
{[%clk 0:00:25.1]} 45. Ra5 {[%clk 0:00:42.5]} 45... Ng7 {[%clk 0:00:25.2]} 46.
a7 {[%clk 0:00:43.3]} 46... Rd8 {[%clk 0:00:25]} 47. Ne3 {[%clk 0:00:43.1]}
47... Nxh5 {[%clk 0:00:25.6]} 48. Ng4+ {[%clk 0:00:40.6]} 48... Kg6 {[%clk
0:00:24.6]} 49. Ne5+ {[%clk 0:00:41.6]} 49... Kg7 {[%clk 0:00:24.5]} 50. Nc4
{[%clk 0:00:39.6]} 50... Nf6 {[%clk 0:00:24]} 51. Nb6 {[%clk 0:00:40.3]} 51...
Ne8 {[%clk 0:00:23.2]} 52. Rc5 {[%clk 0:00:37.6]} 52... Kf7 {[%clk 0:00:18.3]}
53. Kc3 {[%clk 0:00:35.2]} 53... Ke6 {[%clk 0:00:17.3]} 54. d4 {[%clk
0:00:36.3]} 54... Nd6 {[%clk 0:00:17.3]} 55. d5+ {[%clk 0:00:31.6]} 55... Ke5
{[%clk 0:00:15.6]} 56. Kb4 {[%clk 0:00:31.3]} 56... Ne4 {[%clk 0:00:16.3]} 57.
Rb5 {[%clk 0:00:25.9]} 57... Nd6 {[%clk 0:00:15.5]} 58. Rc5 {[%clk 0:00:25.9]}
58... Nb7 {[%clk 0:00:16.7]} 59. Nc4+ {[%clk 0:00:23.9]} 59... Ke4 {[%clk
0:00:16.4]} 60. Rb5 {[%clk 0:00:24.6]} 60... Nd6 {[%clk 0:00:17.6]} 61. Rb8
{[%clk 0:00:24.3]} 61... Bxd5 {[%clk 0:00:11.8]} 62. Rxd8 {[%clk 0:00:23.6]}
62... Nxc4 {[%clk 0:00:11.9]} 63. Rxd5 {[%clk 0:00:22.7]} 63... Nb6 {[%clk
0:00:13.1]} 64. Rd8 {[%clk 0:00:22.6]} 1-0

[Event "***Titled Tuesday 3|2 Blitz"]
[Site "Chess.com"]
[Date "2017.02.07"]
[Round "4"]
[White "alekroth64"]
[Black "Incognito_Knight"]
[Result "0-1"]
[WhiteElo "2222"]
[BlackElo "2293"]
[TimeControl "180+2"]
[EndTime "14:01:22 PST"]
[Termination "Incognito_Knight won by checkmate"]

1. d4 {[%clk 0:03:02]} 1... Nf6 {[%clk 0:03:00.6]} 2. c4 {[%clk 0:03:01.1]} 2...
e6 {[%clk 0:03:01.4]} 3. Nf3 {[%clk 0:03:01.5]} 3... c5 {[%clk 0:03:02.3]} 4. d5
{[%clk 0:03:01.4]} 4... b5 {[%clk 0:03:03.5]} 5. Bg5 {[%clk 0:02:59]} 5... b4
{[%clk 0:03:04.3]} 6. e4 {[%clk 0:02:56.7]} 6... d6 {[%clk 0:03:05]} 7. a3
{[%clk 0:02:51.8]} 7... a5 {[%clk 0:02:50.1]} 8. Bd3 {[%clk 0:02:48]} 8... Be7
{[%clk 0:02:49.8]} 9. O-O {[%clk 0:02:47.9]} 9... O-O {[%clk 0:02:47.6]} 10.
Nbd2 {[%clk 0:02:33.2]} 10... e5 {[%clk 0:02:33.6]} 11. axb4 {[%clk 0:02:31]}
11... cxb4 {[%clk 0:02:34.8]} 12. c5 {[%clk 0:02:29.4]} 12... dxc5 {[%clk
0:02:27.2]} 13. Nxe5 {[%clk 0:02:15.7]} 13... Nxd5 {[%clk 0:02:12.5]} 14. exd5
{[%clk 0:02:14.3]} 14... Bxg5 {[%clk 0:02:13.2]} 15. Ndc4 {[%clk 0:02:11.4]}
15... Bf6 {[%clk 0:02:00.9]} 16. Qf3 {[%clk 0:01:55.4]} 16... Bb7 {[%clk
0:01:49]} 17. Nc6 {[%clk 0:01:51.5]} 17... Nxc6 {[%clk 0:01:33]} 18. dxc6 {[%clk
0:01:50.2]} 18... Bxc6 {[%clk 0:01:34]} 19. Bxh7+ {[%clk 0:01:40.9]} 19... Kxh7
{[%clk 0:01:35.1]} 20. Qxc6 {[%clk 0:01:42]} 20... Qd4 {[%clk 0:01:27.8]} 21.
Rfc1 {[%clk 0:01:29.2]} 21... Rfd8 {[%clk 0:01:20.3]} 22. g3 {[%clk 0:01:28.2]}
22... Re8 {[%clk 0:00:48.9]} 23. Rxa5 {[%clk 0:01:04.2]} 23... Rxa5 {[%clk
0:00:42.6]} 24. Qxe8 {[%clk 0:01:04.1]} 24... Ra7 {[%clk 0:00:35.9]} 25. Qe3
{[%clk 0:01:02.1]} 25... Qxe3 {[%clk 0:00:33.4]} 26. fxe3 {[%clk 0:01:04]} 26...
Ra2 {[%clk 0:00:28.4]} 27. Rc2 {[%clk 0:00:59.4]} 27... b3 {[%clk 0:00:28.9]}
28. Rd2 {[%clk 0:00:58.3]} 28... Ra1+ {[%clk 0:00:24.3]} 29. Kf2 {[%clk
0:00:58.5]} 29... Rc1 {[%clk 0:00:25.3]} 30. Na3 {[%clk 0:00:49.3]} 30... c4
{[%clk 0:00:26]} 31. Ke2 {[%clk 0:00:35.9]} 31... c3 {[%clk 0:00:26.5]} 32. bxc3
{[%clk 0:00:34.5]} 32... Bxc3 {[%clk 0:00:24.7]} 33. Rd1 {[%clk 0:00:31.5]}
33... b2 {[%clk 0:00:25.7]} 34. Nb1 {[%clk 0:00:31]} 34... Bb4 {[%clk
0:00:22.5]} 35. Rf1 {[%clk 0:00:19.7]} 35... Kg6 {[%clk 0:00:21.2]} 36. Rd1
{[%clk 0:00:19.3]} 36... Kf5 {[%clk 0:00:20.1]} 37. Rd5+ {[%clk 0:00:16.3]}
37... Ke6 {[%clk 0:00:20.4]} 38. Rd1 {[%clk 0:00:13.1]} 38... Ke5 {[%clk
0:00:20.6]} 39. Rf1 {[%clk 0:00:12.6]} 39... f5 {[%clk 0:00:20.9]} 40. Rd1
{[%clk 0:00:13]} 40... g5 {[%clk 0:00:21.5]} 41. Rf1 {[%clk 0:00:13]} 41... Ke4
{[%clk 0:00:17.4]} 42. h4 {[%clk 0:00:10]} 42... Rxf1 {[%clk 0:00:12.3]} 43.
Kxf1 {[%clk 0:00:09.6]} 43... gxh4 {[%clk 0:00:13.5]} 44. gxh4 {[%clk
0:00:10.3]} 44... Kd3 {[%clk 0:00:08.1]} 45. h5 {[%clk 0:00:09.8]} 45... Kc2
{[%clk 0:00:09]} 46. h6 {[%clk 0:00:09.8]} 46... Kxb1 {[%clk 0:00:10.1]} 47. h7
{[%clk 0:00:11.7]} 47... Bc3 {[%clk 0:00:11.5]} 48. Ke2 {[%clk 0:00:12.8]} 48...
Bh8 {[%clk 0:00:11.8]} 49. Kf3 {[%clk 0:00:14.1]} 49... Kc2 {[%clk 0:00:13]} 50.
Kf4 {[%clk 0:00:16]} 50... b1=Q {[%clk 0:00:13.9]} 51. Kxf5 {[%clk 0:00:17.9]}
51... Kd3 {[%clk 0:00:14.3]} 52. e4 {[%clk 0:00:19.8]} 52... Kd4 {[%clk
0:00:14.9]} 53. Ke6 {[%clk 0:00:18.7]} 53... Qxe4+ {[%clk 0:00:15.7]} 54. Kd6
{[%clk 0:00:20]} 54... Qd5+ {[%clk 0:00:15.9]} 55. Ke7 {[%clk 0:00:20.5]} 55...
Ke5 {[%clk 0:00:14.8]} 56. Kf8 {[%clk 0:00:20]} 56... Qd7 {[%clk 0:00:12.6]} 57.
Kg8 {[%clk 0:00:19.9]} 57... Qg7# {[%clk 0:00:14]} 0-1

[Event "***Titled Tuesday 3|2 Blitz"]
[Site "Chess.com"]
[Date "2017.02.07"]
[Round "4"]
[White "tigra"]
[Black "FairChess_on_YouTube"]
[Result "1/2-1/2"]
[WhiteElo "2570"]
[BlackElo "2742"]
[TimeControl "180+2"]
[EndTime "14:01:32 PST"]
[Termination "Game drawn - insufficient material"]

1. c4 {[%clk 0:03:02]} 1... e5 {[%clk 0:02:56.9]} 2. g3 {[%clk 0:02:59.3]} 2...
g6 {[%clk 0:02:54.7]} 3. Bg2 {[%clk 0:02:59.6]} 3... Bg7 {[%clk 0:02:55.6]} 4.
Nc3 {[%clk 0:03:00.3]} 4... Ne7 {[%clk 0:02:56.4]} 5. e4 {[%clk 0:02:59.2]} 5...
c5 {[%clk 0:02:55.9]} 6. d3 {[%clk 0:02:59.3]} 6... Nbc6 {[%clk 0:02:56.6]} 7.
Be3 {[%clk 0:02:55.3]} 7... d6 {[%clk 0:02:56.6]} 8. Qd2 {[%clk 0:02:55.9]} 8...
Nd4 {[%clk 0:02:56.5]} 9. f4 {[%clk 0:02:54.3]} 9... O-O {[%clk 0:02:39.8]} 10.
Nf3 {[%clk 0:02:52.3]} 10... a6 {[%clk 0:02:37.7]} 11. O-O {[%clk 0:02:46.7]}
11... Bg4 {[%clk 0:02:34.8]} 12. Ng5 {[%clk 0:02:03.9]} 12... exf4 {[%clk
0:02:20.1]} 13. gxf4 {[%clk 0:02:02.9]} 13... h6 {[%clk 0:02:15.2]} 14. Nh3
{[%clk 0:02:00.8]} 14... f5 {[%clk 0:02:01]} 15. Kh1 {[%clk 0:01:54.8]} 15... b5
{[%clk 0:01:59.4]} 16. cxb5 {[%clk 0:01:45.9]} 16... axb5 {[%clk 0:01:57.8]} 17.
Bxd4 {[%clk 0:01:38.2]} 17... cxd4 {[%clk 0:01:53.6]} 18. Nxb5 {[%clk
0:01:39.2]} 18... fxe4 {[%clk 0:01:49.1]} 19. dxe4 {[%clk 0:01:39]} 19... Qb6
{[%clk 0:01:49.8]} 20. a4 {[%clk 0:01:35.4]} 20... Bd7 {[%clk 0:01:49.9]} 21.
Nf2 {[%clk 0:01:21.3]} 21... Ra6 {[%clk 0:01:34]} 22. Rfc1 {[%clk 0:01:02.1]}
22... d5 {[%clk 0:00:46.9]} 23. e5 {[%clk 0:00:56.8]} 23... Bxb5 {[%clk
0:00:46.7]} 24. axb5 {[%clk 0:00:57.2]} 24... Rxa1 {[%clk 0:00:48.3]} 25. Rxa1
{[%clk 0:00:58.4]} 25... Qxb5 {[%clk 0:00:47.2]} 26. Qxd4 {[%clk 0:00:54.3]}
26... Qc4 {[%clk 0:00:37.3]} 27. Qxc4 {[%clk 0:00:28.4]} 27... dxc4 {[%clk
0:00:39.2]} 28. Nh3 {[%clk 0:00:23.2]} 28... g5 {[%clk 0:00:40]} 29. fxg5 {[%clk
0:00:20.5]} 29... Bxe5 {[%clk 0:00:40.5]} 30. Bf1 {[%clk 0:00:19.2]} 30... Rc8
{[%clk 0:00:31.2]} 31. Re1 {[%clk 0:00:12.7]} 31... Ng6 {[%clk 0:00:24.5]} 32.
Re4 {[%clk 0:00:13.4]} 32... Bxb2 {[%clk 0:00:17.7]} 33. Bxc4+ {[%clk
0:00:14.1]} 33... Kg7 {[%clk 0:00:18.5]} 34. Kg2 {[%clk 0:00:11.9]} 34... Rc5
{[%clk 0:00:16.9]} 35. gxh6+ {[%clk 0:00:12.2]} 35... Kxh6 {[%clk 0:00:18.7]}
36. Nf2 {[%clk 0:00:13.1]} 36... Kg7 {[%clk 0:00:17.7]} 37. Bd3 {[%clk
0:00:11.6]} 37... Rg5+ {[%clk 0:00:17.9]} 38. Kf1 {[%clk 0:00:12.3]} 38... Ne5
{[%clk 0:00:18.1]} 39. Bc2 {[%clk 0:00:13.2]} 39... Nf3 {[%clk 0:00:18]} 40.
Re7+ {[%clk 0:00:13.5]} 40... Kf8 {[%clk 0:00:17.7]} 41. Rb7 {[%clk 0:00:12.7]}
41... Rg1+ {[%clk 0:00:16.5]} 42. Ke2 {[%clk 0:00:13.7]} 42... Nd4+ {[%clk
0:00:17.9]} 43. Kd3 {[%clk 0:00:14.8]} 43... Nxc2 {[%clk 0:00:16.9]} 44. Rxb2
{[%clk 0:00:14.8]} 44... Ne1+ {[%clk 0:00:12.2]} 45. Ke4 {[%clk 0:00:07.1]}
45... Rg2 {[%clk 0:00:11.4]} 46. h3 {[%clk 0:00:08.2]} 46... Rh2 {[%clk
0:00:11.1]} 47. Kf5 {[%clk 0:00:07.5]} 47... Nf3 {[%clk 0:00:06.3]} 48. Kf6
{[%clk 0:00:07.2]} 48... Ke8 {[%clk 0:00:06.9]} 49. Rc2 {[%clk 0:00:05.1]} 49...
Kd7 {[%clk 0:00:06.6]} 50. Re2 {[%clk 0:00:05.3]} 50... Ng1 {[%clk 0:00:05.4]}
51. Re7+ {[%clk 0:00:05.6]} 51... Kc6 {[%clk 0:00:05.7]} 52. Re6+ {[%clk
0:00:05]} 52... Kb5 {[%clk 0:00:05.3]} 53. Re5+ {[%clk 0:00:05.9]} 53... Ka6
{[%clk 0:00:06]} 54. Ne4 {[%clk 0:00:06]} 54... Rxh3 {[%clk 0:00:05.1]} 55. Ke6
{[%clk 0:00:06.3]} 55... Nf3 {[%clk 0:00:05.7]} 56. Rd5 {[%clk 0:00:07.1]} 56...
Rh4 {[%clk 0:00:05.2]} 57. Nc5+ {[%clk 0:00:06.8]} 57... Kb5 {[%clk 0:00:06.1]}
58. Nd3+ {[%clk 0:00:07.2]} 58... Kc4 {[%clk 0:00:05.1]} 59. Ne5+ {[%clk
0:00:08.1]} 59... Nxe5 {[%clk 0:00:06.1]} 60. Rxe5 {[%clk 0:00:10]} 60... Rh6+
{[%clk 0:00:06.9]} 61. Kf7 {[%clk 0:00:11]} 61... Rd6 {[%clk 0:00:07]} 62. Re6
{[%clk 0:00:11.9]} 62... Rxe6 {[%clk 0:00:07.9]} 63. Kxe6 {[%clk 0:00:13.8]}
1/2-1/2

[Event "***Titled Tuesday 3|2 Blitz"]
[Site "Chess.com"]
[Date "2017.02.07"]
[Round "4"]
[White "Yaacovn"]
[Black "WanderingPuppet"]
[Result "1-0"]
[WhiteElo "2586"]
[BlackElo "2321"]
[TimeControl "180+2"]
[EndTime "14:01:43 PST"]
[Termination "Yaacovn won by resignation"]

1. d4 {[%clk 0:03:00]} 1... Nf6 {[%clk 0:02:59.1]} 2. Nf3 {[%clk 0:02:44.9]}
2... g6 {[%clk 0:02:56.8]} 3. c4 {[%clk 0:02:43.5]} 3... Bg7 {[%clk 0:02:57.9]}
4. Nc3 {[%clk 0:02:38.6]} 4... O-O {[%clk 0:02:58.5]} 5. g3 {[%clk 0:02:38.6]}
5... Nc6 {[%clk 0:02:52.3]} 6. Bg2 {[%clk 0:02:31.7]} 6... d6 {[%clk 0:02:52.8]}
7. O-O {[%clk 0:02:30.7]} 7... a6 {[%clk 0:02:53.8]} 8. b3 {[%clk 0:02:31.4]}
8... Bd7 {[%clk 0:02:30.7]} 9. Bb2 {[%clk 0:02:28.3]} 9... e5 {[%clk 0:02:25.6]}
10. e3 {[%clk 0:02:26.4]} 10... Re8 {[%clk 0:02:09.7]} 11. Qc2 {[%clk 0:02:10]}
11... Bf5 {[%clk 0:02:06]} 12. Qd2 {[%clk 0:01:59.9]} 12... Ne4 {[%clk
0:01:48.5]} 13. Nxe4 {[%clk 0:01:49.8]} 13... Bxe4 {[%clk 0:01:50.4]} 14. Rad1
{[%clk 0:01:48.3]} 14... exd4 {[%clk 0:01:41]} 15. Nxd4 {[%clk 0:01:48]} 15...
Bxg2 {[%clk 0:01:40.3]} 16. Kxg2 {[%clk 0:01:47]} 16... Nxd4 {[%clk 0:01:41.2]}
17. Bxd4 {[%clk 0:01:45.2]} 17... Bxd4 {[%clk 0:01:41.6]} 18. Qxd4 {[%clk
0:01:45.9]} 18... Qe7 {[%clk 0:01:42.8]} 19. Kg1 {[%clk 0:01:44.6]} 19... Qe5
{[%clk 0:01:39.6]} 20. Qd5 {[%clk 0:00:48.5]} 20... Rab8 {[%clk 0:01:39.9]} 21.
Rd2 {[%clk 0:00:38.4]} 21... Qc3 {[%clk 0:01:07.1]} 22. Rfd1 {[%clk 0:00:34.6]}
22... Re5 {[%clk 0:01:07.1]} 23. Qd4 {[%clk 0:00:26.4]} 23... Qxd4 {[%clk
0:01:06.7]} 24. Rxd4 {[%clk 0:00:26.2]} 24... Rbe8 {[%clk 0:00:45.8]} 25. Kg2
{[%clk 0:00:26.8]} 25... h5 {[%clk 0:00:44.9]} 26. h4 {[%clk 0:00:27.3]} 26...
Kg7 {[%clk 0:00:46.3]} 27. Rd5 {[%clk 0:00:27.9]} 27... f5 {[%clk 0:00:37.8]}
28. Kf3 {[%clk 0:00:28.3]} 28... R8e7 {[%clk 0:00:36.1]} 29. Ke2 {[%clk
0:00:28.4]} 29... Kf6 {[%clk 0:00:35.2]} 30. R5d4 {[%clk 0:00:28.7]} 30... Re8
{[%clk 0:00:18.7]} 31. R1d2 {[%clk 0:00:28.7]} 31... Ra8 {[%clk 0:00:18.6]} 32.
Kf3 {[%clk 0:00:27.2]} 32... a5 {[%clk 0:00:19.7]} 33. a3 {[%clk 0:00:27.9]}
33... b6 {[%clk 0:00:20.7]} 34. R4d3 {[%clk 0:00:26.6]} 34... Ra7 {[%clk
0:00:21.6]} 35. Rd5 {[%clk 0:00:27]} 35... Ra8 {[%clk 0:00:21.9]} 36. Rxe5
{[%clk 0:00:27.9]} 36... Kxe5 {[%clk 0:00:23.8]} 37. Rd5+ {[%clk 0:00:28]} 37...
Kf6 {[%clk 0:00:24.2]} 38. Kf4 {[%clk 0:00:28.3]} 38... Re8 {[%clk 0:00:24]} 39.
Rd4 {[%clk 0:00:29.2]} 39... Re5 {[%clk 0:00:24.4]} 40. Kf3 {[%clk 0:00:29.9]}
40... Re8 {[%clk 0:00:25]} 41. Rd1 {[%clk 0:00:30.4]} 41... Re5 {[%clk
0:00:24.7]} 42. Ke2 {[%clk 0:00:29.9]} 42... Re8 {[%clk 0:00:25.5]} 43. Kd3
{[%clk 0:00:30.4]} 43... Re4 {[%clk 0:00:21.5]} 44. Rc1 {[%clk 0:00:30.7]} 44...
Ke7 {[%clk 0:00:20.9]} 45. b4 {[%clk 0:00:31.3]} 45... axb4 {[%clk 0:00:21.6]}
46. axb4 {[%clk 0:00:32.2]} 46... Kd7 {[%clk 0:00:22.3]} 47. b5 {[%clk
0:00:32.6]} 47... Re8 {[%clk 0:00:23.5]} 48. Ra1 {[%clk 0:00:33.2]} 48... Rc8
{[%clk 0:00:22.6]} 49. Kd4 {[%clk 0:00:33.7]} 49... Ke6 {[%clk 0:00:24]} 50. e4
{[%clk 0:00:33.2]} 50... fxe4 {[%clk 0:00:24.5]} 51. Kxe4 {[%clk 0:00:34.2]}
51... Rf8 {[%clk 0:00:24.7]} 52. f3 {[%clk 0:00:35.2]} 52... Rf7 {[%clk
0:00:24.6]} 53. Ra8 {[%clk 0:00:35.1]} 53... Kf6 {[%clk 0:00:23.9]} 54. Re8
{[%clk 0:00:33.5]} 54... Rd7 {[%clk 0:00:22.1]} 55. Kd5 {[%clk 0:00:33.5]} 55...
Rf7 {[%clk 0:00:19.5]} 56. Kc6 {[%clk 0:00:33.8]} 56... g5 {[%clk 0:00:18.3]}
57. hxg5+ {[%clk 0:00:33.7]} 57... Kxg5 {[%clk 0:00:20.2]} 58. Re3 {[%clk
0:00:33.2]} 58... h4 {[%clk 0:00:20.5]} 59. gxh4+ {[%clk 0:00:32.7]} 59... Kxh4
{[%clk 0:00:22.4]} 60. Re8 {[%clk 0:00:32.1]} 60... Kg3 {[%clk 0:00:22.2]} 61.
Rc8 {[%clk 0:00:32.5]} 61... Rf4 {[%clk 0:00:18.3]} 62. Rxc7 {[%clk 0:00:32]}
62... Rxc4+ {[%clk 0:00:19]} 63. Kxd6 {[%clk 0:00:31]} 63... Rb4 {[%clk
0:00:17.1]} 64. Kc6 {[%clk 0:00:31.7]} 64... Kxf3 {[%clk 0:00:17]} 65. Re7
{[%clk 0:00:31.9]} 65... Kf4 {[%clk 0:00:15.4]} 66. Kxb6 {[%clk 0:00:32.7]}
66... Kf5 {[%clk 0:00:15.9]} 67. Re1 {[%clk 0:00:32.9]} 67... Kf4 {[%clk
0:00:11.7]} 68. Kc5 {[%clk 0:00:33.3]} 68... Rb2 {[%clk 0:00:12.5]} 69. Rc1
{[%clk 0:00:33.3]} 69... Ke4 {[%clk 0:00:12.6]} 70. b6 {[%clk 0:00:33.5]} 70...
Ke5 {[%clk 0:00:10.9]} 71. Kc6 {[%clk 0:00:33.7]} 1-0